bitfinex-derivatives/quotes_BTCF0:USTF0_20210708
["timestamp","ask_amount","ask_price","bid_price","bid_amount"]
[1625717020092,1.057,33140.0,33116.0,0.5]
[1625717020093,1.057,33140.0,33135.0,0.35122842]
[1625717020264,1.057,33140.0,33131.0,0.87701085]
[1625717020392,2.01930176,33140.0,33131.0,0.87701085]
[1625717020566,1.01930176,33140.0,33132.0,0.35082456]
[1625717020705,2.01930176,33140.0,33132.0,0.35082456]
[1625717020858,1.96230176,33140.0,33133.0,0.87701027]
[1625717021004,0.24057544,33140.0,33139.0,0.3441918]
[1625717021154,1.057,33145.0,33139.0,0.3441918]
[1625717021295,1.057,33145.0,33139.0,0.6935818]
[1625717021594,1.0,33141.0,33139.0,0.68939]
[1625717021744,0.057,33141.0,33139.0,0.68939]
[1625717022494,0.24057544,33141.0,33140.0,0.48115088]
[1625717022646,0.24057544,33141.0,33140.0,0.4854118]
[1625717022795,0.24057544,33144.0,33140.0,0.4854118]
[1625717023247,0.24057544,33144.0,33141.0,0.00425955]
[1625717024222,0.24057544,33151.0,33141.0,0.00425955]
[1625717024374,1.0,33153.0,33141.0,0.00425955]
[1625717024523,0.24057544,33157.0,33150.0,0.72172632]
[1625717024673,0.057,33156.0,33150.0,0.98338632]
[1625717024825,1.0,33161.0,33150.0,0.98338632]
[1625717024973,0.001,33163.0,33150.0,0.98338632]
[1625717024974,0.001,33163.0,33151.0,0.00425889]
[1625717025123,1.0,33161.0,33151.0,0.00425889]
[1625717025274,1.001,33163.0,33151.0,0.00425889]
[1625717025585,1.001,33163.0,33150.0,0.98338632]
[1625717025873,0.001,33163.0,33150.0,0.98338632]
[1625717026022,0.001,33163.0,33151.0,0.00425806]
[1625717026324,1.0,33160.0,33151.0,0.00425806]
[1625717026473,0.057,33159.0,33151.0,0.00425806]
[1625717026638,0.24057544,33160.0,33151.0,0.00425806]
[1625717026932,0.057,33159.0,33151.0,0.00425806]
[1625717027223,0.24057544,33160.0,33151.0,0.00425806]
[1625717027385,0.003,33154.0,33152.0,0.87777815]
[1625717027682,0.003,33154.0,33152.0,0.35111126]
[1625717027827,0.003,33154.0,33153.0,0.00425524]
[1625717028279,0.003,33154.0,33152.0,0.35110501]
[1625717028425,0.003,33154.0,33153.0,0.48115088]
[1625717028578,0.003,33154.0,33153.0,0.8365157]
[1625717029778,0.003,33154.0,33153.0,1.7141085]
[1625717029928,0.003,33154.0,33153.0,1.01199296]
[1625717030227,0.003,33154.0,33153.0,1.71410089]
[1625717030677,0.003,33154.0,33153.0,1.01199296]
[1625717031431,0.003,33154.0,33153.0,1.71406474]
[1625717031586,0.003,33154.0,33153.0,2.21406474]
[1625717031729,0.003,33154.0,33153.0,4.49560669]
[1625717032331,0.003,33154.0,33153.0,3.99560669]
[1625717032479,0.003,33154.0,33153.0,2.7670841]
[1625717032630,0.003,33154.0,33153.0,3.99579476]
[1625717033995,0.003,33154.0,33153.0,3.51464388]
[1625717034281,0.003,33154.0,33153.0,0.53084208]
[1625717034512,0.003,33154.0,33153.0,1.31767248]
[1625717035590,0.003,33154.0,33153.0,0.24483086]
[1625717035706,1.003,33154.0,33153.0,0.24483086]
[1625717035877,1.06,33154.0,33153.0,0.24483086]
[1625717036041,0.06,33154.0,33153.0,0.24057544]
[1625717036462,0.29857544,33154.0,33153.0,0.24057544]
[1625717037215,0.058,33154.0,33153.0,0.24057544]
[1625717037957,0.001,33154.0,33153.0,0.24057544]
[1625717038108,0.001,33154.0,33153.0,0.24482243]
[1625717038860,0.001,33154.0,33153.0,0.59599131]
[1625717039386,0.001,33154.0,33153.0,1.47399949]
[1625717039911,0.001,33154.0,33153.0,2.52755584]
[1625717040511,0.001,33154.0,33153.0,2.76813128]
[1625717040694,0.001,33154.0,33153.0,2.2869804]
[1625717040851,0.22088,33154.0,33153.0,2.2869804]
[1625717040985,1.27788,33154.0,33153.0,0.00424699]
[1625717041263,0.27788,33154.0,33147.0,0.35228609]
[1625717041412,0.27788,33154.0,33147.0,0.001]
[1625717041561,1.27788,33154.0,33148.0,0.0042473]
[1625717041864,1.0,33153.0,33148.0,0.0042473]
[1625717042012,0.057,33152.0,33148.0,0.0042473]
[1625717042464,1.057,33152.0,33148.0,0.0042473]
[1625717042612,1.057,33152.0,33151.0,0.24057544]
[1625717042837,0.057,33152.0,33151.0,0.24057544]
[1625717043137,0.001,33154.0,33151.0,0.24057544]
[1625717044490,0.001,33154.0,33151.0,0.56851544]
[1625717044799,0.001,33154.0,33152.0,0.00422679]
[1625717045406,0.001,33154.0,33153.0,0.3516998]
[1625717045614,0.001,33154.0,33153.0,1.23087032]
[1625717045914,0.001,33154.0,33153.0,2.29013536]
[1625717046066,0.001,33154.0,33153.0,2.79013536]
[1625717046215,0.001,33154.0,33153.0,5.42806776]
[1625717046365,0.001,33154.0,33153.0,4.92806776]
[1625717046517,0.001,33154.0,33153.0,5.89036952]
[1625717046964,0.001,33154.0,33153.0,6.39036952]
[1625717047640,0.001,33154.0,33153.0,7.97422908]
[1625717048240,0.002,33159.0,33153.0,7.97422908]
[1625717048552,0.002,33159.0,33158.0,0.48115088]
[1625717048692,0.002,33159.0,33158.0,7.72795778]
[1625717048843,0.002,33159.0,33158.0,7.73218231]
[1625717049470,0.8414036,33180.0,33158.0,9.50624684]
[1625717049594,0.57736684,33181.0,33175.0,0.35226638]
[1625717049761,0.57736684,33181.0,33175.0,0.56883638]
[1625717049903,0.24065088,33181.0,33176.0,0.88064739]
[1625717050059,0.24065088,33181.0,33177.0,0.5]
[1625717050200,0.24065088,33181.0,33177.0,0.35208327]
[1625717050344,0.24065088,33181.0,33178.0,0.00422306]
[1625717050498,0.24065088,33181.0,33178.0,0.35628934]
[1625717050668,7.544e-05,33181.0,33180.0,0.72172632]
[1625717050809,7.544e-05,33181.0,33180.0,1.22172632]
[1625717050955,7.544e-05,33181.0,33180.0,1.953818]
[1625717051245,7.544e-05,33181.0,33180.0,1.95804027]
[1625717051396,7.544e-05,33181.0,33180.0,3.5153533]
[1625717051998,7.544e-05,33181.0,33180.0,1.953818]
[1625717052523,7.544e-05,33181.0,33180.0,2.453818]
[1625717052674,7.544e-05,33181.0,33180.0,1.953818]
[1625717052987,7.544e-05,33181.0,33180.0,1.24976561]
[1625717053273,7.544e-05,33181.0,33180.0,0.72172632]
[1625717053724,7.544e-05,33181.0,33180.0,1.07389012]
[1625717054036,7.544e-05,33181.0,33180.0,0.72172632]
[1625717055523,1.00007544,33181.0,33180.0,0.72172632]
[1625717055676,2.23165406,33181.0,33180.0,0.48115088]
[1625717055824,2.57123406,33181.0,33180.0,0.48115088]
[1625717055975,2.57123406,33181.0,33180.0,0.24057544]
[1625717055976,3.57717419,33181.0,33180.0,0.24057544]
[1625717056277,6.08860728,33181.0,33177.0,0.24057544]
[1625717056425,4.68694365,33178.0,33177.0,0.24057544]
[1625717056577,6.22509453,33178.0,33177.0,0.24057544]
[1625717056726,6.22509453,33178.0,33172.0,0.24057544]
[1625717056876,0.50221918,33173.0,33172.0,0.24057544]
[1625717057026,0.88159918,33173.0,33172.0,0.24057544]
[1625717057176,1.55089935,33173.0,33172.0,0.24057544]
[1625717057326,2.55089935,33173.0,33172.0,0.24057544]
[1625717058377,3.55489474,33173.0,33172.0,0.24057544]
[1625717058676,3.79547018,33173.0,33172.0,0.24057544]
[1625717059577,2.79547018,33173.0,33172.0,0.24057544]
[1625717059879,1.79147479,33173.0,33172.0,0.24057544]
[1625717060029,1.46909479,33173.0,33172.0,0.24057544]
[1625717060182,0.29757544,33173.0,33172.0,0.24057544]
[1625717060329,0.33528843,33174.0,33172.0,0.24057544]
[1625717060482,0.33557959,33177.0,33172.0,0.47982544]
[1625717060631,0.83918514,33180.0,33172.0,0.47982544]
[1625717060779,0.83918514,33180.0,33176.0,0.48115088]
[1625717061081,0.83972316,33181.0,33176.0,0.48115088]
[1625717061531,0.057,33180.0,33176.0,0.48115088]
[1625717061720,0.39272794,33180.0,33176.0,0.48115088]
[1625717061850,1.0,33177.0,33176.0,0.48115088]
[1625717061981,1.39376,33177.0,33176.0,0.48115088]
[1625717062132,0.33676,33177.0,33176.0,0.48115088]
[1625717062581,0.39376,33177.0,33176.0,0.48115088]
[1625717062882,0.057,33177.0,33176.0,0.48115088]
[1625717063408,0.057,33177.0,33176.0,0.48215088]
[1625717063710,1.057,33177.0,33176.0,0.48215088]
[1625717063860,2.23083938,33177.0,33176.0,0.48215088]
[1625717064012,2.23083938,33177.0,33176.0,0.24157544]
[1625717064161,2.23083938,33177.0,33176.0,0.001]
[1625717064364,5.74596167,33177.0,33176.0,0.001]
[1625717064612,7.25113696,33177.0,33176.0,0.001]
[1625717064761,7.97286328,33177.0,33171.0,0.002]
[1625717064912,3.34398342,33172.0,33171.0,0.002]
[1625717065062,3.72138342,33172.0,33171.0,0.002]
[1625717065443,5.05854356,33172.0,33171.0,0.002]
[1625717066042,6.05854356,33172.0,33171.0,0.002]
[1625717066199,3.55105609,33172.0,33171.0,0.002]
[1625717066417,3.55105609,33172.0,33169.0,0.24057544]
[1625717066418,3.23065609,33172.0,33169.0,0.24057544]
[1625717066566,2.23065609,33172.0,33169.0,0.24057544]
[1625717066717,1.31811437,33170.0,33169.0,0.24057544]
[1625717066868,2.37511437,33170.0,33169.0,0.24057544]
[1625717067018,2.04029551,33170.0,33169.0,0.24057544]
[1625717067469,2.70948649,33170.0,33169.0,0.24057544]
[1625717067618,1.70948649,33170.0,33169.0,0.24057544]
[1625717067920,0.98329551,33170.0,33169.0,0.24057544]
[1625717068221,0.48115088,33170.0,33169.0,0.24057544]
[1625717068518,0.33536357,33175.0,33169.0,0.24057544]
[1625717068669,0.33536357,33175.0,33169.0,0.46745544]
[1625717068819,0.50296155,33176.0,33174.0,0.24057544]
[1625717068820,0.33548515,33176.0,33174.0,0.24057544]
[1625717069119,1.31982384,33177.0,33174.0,0.24057544]
[1625717069421,0.48115088,33177.0,33174.0,0.24057544]
[1625717071221,0.057,33176.0,33174.0,0.24057544]
[1625717071375,0.48115088,33177.0,33174.0,0.24057544]
[1625717073399,0.48115088,33177.0,33174.0,0.56201544]
[1625717073547,0.001,33179.0,33174.0,0.56201544]
[1625717074748,0.001,33179.0,33178.0,0.24057544]
[1625717076249,0.336408,33179.0,33178.0,0.24057544]
[1625717076399,0.393408,33179.0,33178.0,0.24057544]
[1625717076552,0.56088751,33179.0,33178.0,0.24057544]
[1625717076702,3.23604692,33179.0,33178.0,0.24057544]
[1625717076851,3.47662236,33179.0,33178.0,0.24057544]
[1625717077152,4.64824133,33179.0,33178.0,0.24057544]
[1625717078052,5.98599615,33179.0,33178.0,0.24057544]
[1625717078505,4.98599615,33179.0,33157.0,0.9216]
[1625717078655,5.33875615,33179.0,33162.0,0.003]
[1625717078803,0.96230176,33163.0,33162.0,0.003]
[1625717078957,1.35826176,33163.0,33162.0,0.003]
[1625717079403,1.35826176,33163.0,33159.0,0.003]
[1625717081733,1.01930176,33163.0,33159.0,0.003]
[1625717082184,1.01930176,33163.0,33159.0,0.09103838]
[1625717082711,1.01930176,33163.0,33159.0,0.003]
[1625717084813,1.01930176,33163.0,33159.0,0.09108306]
[1625717085126,0.96230176,33163.0,33161.0,0.08808053]
[1625717085297,0.96230176,33163.0,33161.0,0.35610053]
[1625717085424,0.96230176,33163.0,33162.0,0.4403875]
[1625717085592,0.96230176,33163.0,33162.0,0.44458991]
[1625717085722,0.96230176,33163.0,33162.0,2.29405553]
[1625717085864,0.96230176,33163.0,33162.0,3.52695033]
[1625717086164,0.96230176,33163.0,33162.0,4.93601313]
[1625717086316,0.96230176,33163.0,33162.0,5.43601313]
[1625717086616,0.001,33164.0,33162.0,5.43601313]
[1625717086765,0.002,33169.0,33162.0,5.43601313]
[1625717086915,0.002,33169.0,33163.0,5.89808542]
[1625717087067,0.002,33169.0,33164.0,0.5]
[1625717087218,0.002,33169.0,33168.0,2.28961378]
[1625717087366,0.002,33169.0,33168.0,1.54910896]
[1625717087667,0.002,33169.0,33168.0,1.55330994]
[1625717087966,0.002,33169.0,33168.0,2.61000728]
[1625717088567,0.002,33169.0,33168.0,3.11000728]
[1625717088870,0.002,33169.0,33168.0,3.59115816]
[1625717089020,0.002,33169.0,33168.0,4.32398879]
[1625717089619,0.002,33169.0,33168.0,3.09115816]
[1625717090390,0.002,33169.0,33168.0,2.77491816]
[1625717090525,0.002,33169.0,33168.0,1.01372427]
[1625717090822,0.002,33169.0,33168.0,0.48535186]
[1625717090974,0.002,33169.0,33168.0,0.48115088]
[1625717092319,0.002,33169.0,33168.0,0.78270088]
[1625717092469,0.002,33169.0,33168.0,0.7869024]
[1625717092769,0.002,33169.0,33168.0,3.07667439]
[1625717096728,0.002,33169.0,33168.0,5.71944599]
[1625717096869,0.002,33169.0,33168.0,6.21944599]
[1625717096999,0.003,33174.0,33168.0,6.21944599]
[1625717097000,0.003,33174.0,33168.0,7.80493196]
[1625717097137,0.003,33174.0,33168.0,9.56653671]
[1625717097296,0.002,33175.0,33173.0,6.51732869]
[1625717097432,0.002,33175.0,33174.0,0.5]
[1625717097581,0.002,33175.0,33174.0,7.02142646]
[1625717098852,0.002,33175.0,33174.0,7.50257734]
[1625717099906,0.002,33175.0,33174.0,5.9173059]
[1625717100054,0.002,33175.0,33174.0,5.4173059]
[1625717100354,0.002,33176.0,33174.0,5.4173059]
[1625717100653,0.002,33176.0,33175.0,3.52535225]
[1625717100803,0.002,33176.0,33175.0,2.29294785]
[1625717100953,0.002,33176.0,33175.0,2.53352329]
[1625717101254,0.002,33176.0,33175.0,2.52932647]
[1625717101404,0.002,33176.0,33175.0,1.47297984]
[1625717102380,0.002,33176.0,33175.0,0.5048317]
[1625717102531,0.002,33176.0,33175.0,0.41674628]
[1625717102680,0.002,33176.0,33175.0,0.24057544]
[1625717102980,0.24257544,33176.0,33175.0,0.24057544]
[1625717103131,0.29957544,33176.0,33175.0,0.24057544]
[1625717103656,0.24257544,33176.0,33175.0,0.24057544]
[1625717104109,0.24257544,33176.0,33175.0,0.50499895]
[1625717104259,0.002,33176.0,33175.0,0.76941622]
[1625717104410,0.002,33176.0,33175.0,1.12197674]
[1625717104559,0.002,33176.0,33175.0,2.53214565]
[1625717104858,0.002,33176.0,33175.0,3.76597076]
[1625717105308,0.002,33176.0,33175.0,4.26597076]
[1625717105609,0.002,33176.0,33175.0,5.67599118]
[1625717106211,0.002,33176.0,33175.0,5.68018739]
[1625717106362,0.001,33178.0,33175.0,7.26646173]
[1625717106510,0.001,33178.0,33177.0,4.93497116]
[1625717106659,0.001,33178.0,33177.0,5.43497116]
[1625717106965,0.001,33178.0,33177.0,7.26546304]
[1625717110980,7.544e-05,33181.0,33177.0,7.26546304]
[1625717111100,7.544e-05,33181.0,33177.0,9.02561951]
[1625717111399,7.544e-05,33181.0,33180.0,6.51235368]
[1625717111541,7.544e-05,33181.0,33180.0,8.78509883]
[1625717111840,7.544e-05,33181.0,33180.0,8.78929276]
[1625717112078,7.544e-05,33181.0,33180.0,10.90130862]
[1625717112214,1.22868197,33210.0,33180.0,10.90130862]
[1625717112368,0.005,33198.0,33181.0,0.01266905]
[1625717112516,0.005,33198.0,33196.0,1.40797045]
[1625717112667,0.005,33198.0,33197.0,2.78464214]
[1625717112965,0.005,33198.0,33197.0,3.7469439]
[1625717113417,0.005,33198.0,33197.0,8.1269439]
[1625717113719,0.005,33198.0,33197.0,9.35706626]
[1625717114621,0.005,33198.0,33197.0,8.1269439]
[1625717114946,0.005,33198.0,33197.0,9.3553505]
[1625717115218,0.005,33198.0,33197.0,9.35954267]
[1625717115375,0.005,33199.0,33197.0,12.34252513]
[1625717115593,0.005,33199.0,33198.0,4.91312614]
[1625717115755,0.005,33199.0,33198.0,5.41312614]
[1625717116345,0.005,33199.0,33198.0,4.00937581]
[1625717116645,0.005,33199.0,33198.0,2.78109427]
[1625717116795,0.005,33199.0,33198.0,1.72828153]
[1625717117116,0.005,33199.0,33198.0,1.22828153]
[1625717117427,0.005,33199.0,33197.0,2.01406313]
[1625717117428,0.005,33199.0,33197.0,1.57584084]
[1625717117547,0.22344,33199.0,33197.0,1.31289552]
[1625717117702,0.22344,33199.0,33197.0,0.96230176]
[1625717118302,0.21844,33199.0,33197.0,0.96230176]
[1625717118604,0.001,33201.0,33197.0,0.96230176]
[1625717118973,0.001,33201.0,33197.0,1.78061176]
[1625717119596,0.001,33201.0,33199.0,0.26281151]
[1625717119730,0.001,33201.0,33200.0,0.5]
[1625717119882,0.001,33201.0,33200.0,1.02561583]
[1625717120024,0.001,33201.0,33200.0,1.02560139]
[1625717120477,0.001,33201.0,33200.0,1.37596751]
[1625717120774,0.001,33201.0,33200.0,1.11293614]
[1625717121299,0.001,33201.0,33200.0,0.76257002]
[1625717121449,0.001,33201.0,33200.0,1.1126528]
[1625717122200,0.001,33201.0,33200.0,0.5]
[1625717122875,0.001,33201.0,33197.0,1.22479]
[1625717123025,0.001,33201.0,33198.0,0.5]
[1625717123174,0.001,33201.0,33198.0,0.76239941]
[1625717123475,0.001,33201.0,33198.0,1.11225888]
[1625717123624,0.001,33201.0,33198.0,1.38683888]
[1625717123928,0.001,33201.0,33198.0,0.86204647]
[1625717124604,0.001,33201.0,33198.0,0.77458]
[1625717124749,0.001,33201.0,33198.0,0.5]
[1625717126100,0.001,33201.0,33198.0,0.76233557]
[1625717126325,0.001,33201.0,33198.0,1.11211453]
[1625717126550,0.001,33201.0,33198.0,0.58744519]
[1625717126859,0.001,33201.0,33199.0,0.26642837]
[1625717127028,0.001,33201.0,33200.0,0.5]
[1625717127152,0.002,33206.0,33200.0,4.22540184]
[1625717127315,0.002,33206.0,33200.0,5.62373561]
[1625717127453,0.002,33209.0,33205.0,0.61177682]
[1625717127604,0.002,33209.0,33206.0,0.5]
[1625717128205,0.002,33209.0,33206.0,0.58740798]
[1625717128430,0.002,33209.0,33206.0,0.5]
[1625717128883,0.002,33209.0,33206.0,0.58735063]
[1625717129033,0.002,33209.0,33208.0,0.72172632]
[1625717129184,0.002,33209.0,33208.0,1.46624632]
[1625717130161,0.002,33209.0,33208.0,1.47044082]
[1625717130312,0.002,33209.0,33208.0,2.08169878]
[1625717130611,0.002,33209.0,33208.0,2.69294319]
[1625717131361,0.002,33209.0,33208.0,3.73983857]
[1625717132789,0.002,33209.0,33208.0,2.69294319]
[1625717133237,0.002,33209.0,33208.0,1.99437041]
[1625717133687,0.002,33209.0,33208.0,2.08049008]
[1625717133987,0.002,33209.0,33208.0,1.99334019]
[1625717134138,0.002,33209.0,33208.0,1.99324302]
[1625717134437,0.002,33209.0,33208.0,2.34177816]
[1625717134738,0.002,33209.0,33208.0,2.08023249]
[1625717134888,0.002,33209.0,33208.0,1.73169735]
[1625717135188,0.002,33209.0,33208.0,2.0800397]
[1625717135340,0.002,33209.0,33208.0,1.99294317]
[1625717135640,0.002,33209.0,33208.0,2.68961249]
[1625717135790,0.002,33209.0,33208.0,3.73459909]
[1625717136239,0.001,33212.0,33208.0,3.73459909]
[1625717136392,0.001,33212.0,33208.0,2.68961249]
[1625717136540,0.001,33212.0,33210.0,0.08707232]
[1625717136689,0.001,33212.0,33210.0,0.58707232]
[1625717136990,0.001,33212.0,33211.0,0.0041933]
[1625717137145,0.001,33212.0,33211.0,0.24476874]
[1625717137289,0.001,33212.0,33211.0,0.74476874]
[1625717139466,0.001,33212.0,33211.0,0.24476874]
[1625717139916,0.001,33212.0,33211.0,0.24057544]
[1625717140216,0.001,33212.0,33211.0,0.2447747]
[1625717143599,0.001,33212.0,33211.0,0.7447747]
[1625717145400,0.001,33215.0,33211.0,0.7447747]
[1625717145628,0.001,33215.0,33211.0,0.2447747]
[1625717145925,0.001,33215.0,33212.0,0.00415561]
[1625717147125,0.001,33215.0,33214.0,0.48115088]
[1625717148627,0.001,33215.0,33214.0,0.48530669]
[1625717152983,0.001,33215.0,33214.0,0.98530669]
[1625717153735,0.001,33215.0,33214.0,1.07265087]
[1625717154038,0.001,33215.0,33214.0,2.20810726]
[1625717154335,0.001,33215.0,33214.0,3.25696304]
[1625717154786,0.001,33215.0,33214.0,2.20810726]
[1625717154936,0.001,33215.0,33214.0,3.25677618]
[1625717155354,0.001,33215.0,33214.0,2.20810726]
[1625717155462,0.001,33215.0,33214.0,1.50936408]
[1625717155763,0.001,33215.0,33214.0,0.74748488]
[1625717155914,0.25792,33215.0,33214.0,0.74748488]
[1625717156064,0.25792,33215.0,33214.0,0.57269942]
[1625717156214,0.25792,33215.0,33214.0,0.48530669]
[1625717156961,0.001,33215.0,33214.0,0.48530669]
[1625717157412,0.001,33218.0,33214.0,0.48530669]
[1625717157713,0.001,33218.0,33215.0,0.0041549]
[1625717157863,0.001,33218.0,33215.0,0.2501149]
[1625717158241,0.001,33218.0,33216.0,0.00415624]
[1625717158990,0.001,33218.0,33216.0,0.50415624]
[1625717159291,0.001,33218.0,33217.0,0.24057544]
[1625717159444,0.001,33218.0,33217.0,0.24473153]
[1625717164624,0.001,33218.0,33217.0,0.85919923]
[1625717164926,0.001,33218.0,33217.0,0.24473153]
[1625717166356,3.8475,33220.0,33217.0,0.24473153]
[1625717166653,3.8475,33220.0,33218.0,0.00415247]
[1625717166806,0.84539202,33219.0,33218.0,0.00415247]
[1625717166955,0.84539202,33219.0,33217.0,0.24057544]
[1625717167103,0.50720141,33219.0,33217.0,0.24057544]
[1625717167252,0.24057544,33218.0,33217.0,0.24057544]
[1625717167403,0.74763678,33218.0,33217.0,0.24057544]
[1625717167556,2.43748752,33218.0,33217.0,0.24057544]
[1625717167702,2.45270012,33218.0,33217.0,0.24057544]
[1625717167852,2.45270012,33218.0,33209.0,0.08989084]
[1625717168003,0.59206096,33215.0,33209.0,0.002]
[1625717168152,0.87246096,33215.0,33209.0,0.002]
[1625717168303,0.87246096,33215.0,33210.0,0.00415331]
[1625717168456,0.25388243,33214.0,33210.0,0.00415331]
[1625717168753,0.08479653,33213.0,33210.0,0.00415331]
[1625717168905,0.14182964,33214.0,33210.0,0.62007605]
[1625717169055,0.08482964,33214.0,33210.0,0.62007605]
[1625717169203,0.08480292,33213.0,33210.0,0.00415331]
[1625717169354,0.48115088,33211.0,33209.0,0.61792823]
[1625717169507,0.48115088,33211.0,33209.0,0.002]
[1625717169655,0.48115088,33211.0,33210.0,0.00415367]
[1625717169805,1.07341576,33211.0,33210.0,0.00415367]
[1625717169954,0.56585676,33211.0,33210.0,0.00415367]
[1625717170254,0.48115088,33211.0,33210.0,0.00415367]
[1625717170706,0.98936845,33211.0,33210.0,0.00415367]
[1625717171005,1.327941,33211.0,33210.0,0.00415367]
[1625717171382,1.327941,33211.0,33209.0,0.09010708]
[1625717171684,0.59297177,33210.0,33209.0,0.002]
[1625717171982,0.59297177,33210.0,33209.0,0.09010804]
[1625717171983,0.25425167,33210.0,33209.0,0.09010804]
[1625717172131,0.25425167,33210.0,33209.0,0.09426164]
[1625717172508,0.59308588,33210.0,33209.0,0.09426164]
[1625717172659,0.25425167,33210.0,33209.0,0.62300246]
[1625717172960,0.73560917,33211.0,33209.0,0.8873862]
[1625717173113,0.73560917,33211.0,33210.0,1.23368642]
[1625717173261,0.48115088,33211.0,33210.0,1.23368642]
[1625717173560,0.48115088,33211.0,33210.0,1.23783961]
[1625717173710,0.48115088,33211.0,33210.0,2.29525868]
[1625717174161,0.48115088,33211.0,33210.0,3.52884411]
[1625717174393,0.48115088,33211.0,33210.0,4.93852219]
[1625717174537,0.057,33213.0,33210.0,4.93852219]
[1625717174686,0.24057544,33214.0,33210.0,4.93852219]
[1625717174838,0.24057544,33214.0,33211.0,0.00415223]
[1625717174988,0.24057544,33214.0,33213.0,4.93480857]
[1625717175287,0.24057544,33214.0,33213.0,5.41595945]
[1625717175437,0.24057544,33214.0,33213.0,5.42011159]
[1625717179416,0.24157544,33214.0,33213.0,5.42011159]
[1625717180467,0.24157544,33214.0,33213.0,7.00765478]
[1625717181893,0.24157544,33214.0,33213.0,5.42011159]
[1625717182642,0.24157544,33214.0,33213.0,7.00858628]
[1625717183167,0.24157544,33214.0,33213.0,7.50858628]
[1625717184445,0.24157544,33214.0,33213.0,7.50443414]
[1625717185346,0.24057544,33214.0,33213.0,7.50443414]
[1625717185497,0.24057544,33214.0,33213.0,7.00443414]
[1625717189190,0.29757544,33214.0,33213.0,7.00443414]
[1625717189354,0.56326544,33214.0,33213.0,7.00443414]
[1625717189635,0.56326544,33214.0,33213.0,5.41595945]
[1625717189787,0.64859097,33214.0,33213.0,5.41595945]
[1625717191050,0.56326544,33214.0,33213.0,5.41595945]
[1625717191425,0.29757544,33214.0,33213.0,5.41595945]
[1625717191728,0.29757544,33214.0,33213.0,5.67809945]
[1625717192179,0.24057544,33214.0,33213.0,5.67809945]
[1625717192328,0.24057544,33214.0,33213.0,7.26834588]
[1625717195557,0.24057544,33214.0,33213.0,2.33353731]
[1625717195858,0.24057544,33214.0,33213.0,7.28063876]
[1625717196910,0.29757544,33214.0,33213.0,7.28063876]
[1625717197359,0.29757544,33214.0,33213.0,5.69039233]
[1625717197509,0.29757544,33214.0,33213.0,7.28062442]
[1625717197814,0.29757544,33214.0,33213.0,5.69039233]
[1625717198033,0.29757544,33214.0,33213.0,7.280611]
[1625717198334,0.29757544,33214.0,33213.0,5.69039233]
[1625717198786,0.29757544,33214.0,33213.0,7.28060478]
[1625717199912,0.29757544,33214.0,33213.0,5.69039233]
[1625717200214,0.29757544,33214.0,33213.0,7.28065114]
[1625717201189,0.29757544,33214.0,33213.0,5.69039233]
[1625717201638,0.24057544,33214.0,33213.0,5.69039233]
[1625717202392,0.24057544,33214.0,33213.0,7.2807131]
[1625717205990,0.29757544,33214.0,33213.0,7.2807131]
[1625717211167,0.24057544,33214.0,33213.0,7.2807131]
[1625717212742,0.29757544,33214.0,33213.0,7.2807131]
[1625717213048,0.24057544,33214.0,33213.0,7.2807131]
[1625717214543,0.24057544,33214.0,33213.0,7.28957569]
[1625717214695,0.24057544,33214.0,33213.0,7.2807131]
[1625717214993,0.24057544,33214.0,33213.0,7.28957556]
[1625717215986,0.057,33216.0,33213.0,7.28957556]
[1625717216126,0.057,33216.0,33215.0,6.53837877]
[1625717216569,0.057,33216.0,33215.0,6.54253811]
[1625717216870,0.001,33217.0,33215.0,6.54253811]
[1625717217171,0.001,33217.0,33216.0,6.5379722]
[1625717217470,0.001,33217.0,33216.0,6.54213159]
[1625717217631,0.20657544,33218.0,33216.0,7.05099351]
[1625717217773,0.20657544,33218.0,33217.0,0.24057544]
[1625717217920,0.6005476,33222.0,33217.0,5.76519598]
[1625717218071,0.002,33222.0,33217.0,12.30272593]
[1625717218220,0.002,33222.0,33218.0,0.01301965]
[1625717218376,0.002,33222.0,33221.0,6.53431265]
[1625717218521,0.002,33222.0,33221.0,6.79685265]
[1625717218821,0.002,33222.0,33221.0,6.8010108]
[1625717219197,0.2219558,33224.0,33221.0,6.8010108]
[1625717219497,0.2219558,33224.0,33223.0,6.53400444]
[1625717219649,0.1649558,33224.0,33223.0,6.53400444]
[1625717219799,0.1649558,33224.0,33223.0,6.77873802]
[1625717219973,0.1649558,33224.0,33223.0,7.27873802]
[1625717220249,0.1649558,33224.0,33223.0,6.77873802]
[1625717220850,0.1649558,33224.0,33223.0,5.18938559]
[1625717221151,0.2219558,33224.0,33223.0,5.18938559]
[1625717221302,0.1649558,33224.0,33223.0,5.18938559]
[1625717222280,0.2219558,33224.0,33223.0,5.18938559]
[1625717222580,0.1649558,33224.0,33223.0,0.24473358]
[1625717222730,0.1649558,33224.0,33223.0,5.18699779]
[1625717223858,0.2219558,33224.0,33223.0,5.18699779]
[1625717224008,0.1649558,33224.0,33223.0,5.18699779]
[1625717224609,0.2219558,33224.0,33223.0,5.18699779]
[1625717224772,0.2219558,33224.0,33223.0,4.94642235]
[1625717224912,0.5417158,33224.0,33223.0,4.94642235]
[1625717225360,1.73219145,33224.0,33223.0,1.23972419]
[1625717225511,2.75201577,33224.0,33223.0,0.71016379]
[1625717225661,2.75201577,33224.0,33223.0,0.53359017]
[1625717225960,2.99259121,33224.0,33223.0,0.53359017]
[1625717226118,1.97276689,33224.0,33223.0,0.53359014]
[1625717226263,1.6327706,33224.0,33223.0,2.29813197]
[1625717226564,1.29277415,33224.0,33223.0,2.29813197]
[1625717226713,0.97301415,33224.0,33223.0,2.29813197]
[1625717226861,1.0582223,33224.0,33223.0,2.29813197]
[1625717227463,0.71797108,33224.0,33223.0,2.29813197]
[1625717228216,0.97332466,33224.0,33223.0,2.29813197]
[1625717228820,1.31381988,33224.0,33223.0,2.29813197]
[1625717228969,0.97346447,33224.0,33223.0,2.29813197]
[1625717229275,0.71818392,33224.0,33223.0,3.53361978]
[1625717229570,1.05878378,33224.0,33223.0,3.53361978]
[1625717229720,0.54781242,33224.0,33223.0,3.53361978]